Cogmind - Beta 10.2 @@@ ROGUE MODE // 2021.03.10 @ 14:55:05 Player: Exp. Geonium Core Result: Self-destructed Performance ------------- Evolutions (6) 3000 Regions Visited (9) 1800 Robots Destroyed (82) 410 Value Destroyed (2930) 2930 Prototype IDs (9) 180 Alien Tech Used (0) 0 Bonus (683) 683 TOTAL SCORE: 9003 Bonus ------- Pacifist 200 High Alert Combat Kills 378 Follower Combat Kills 105 Cogmind --------- Core Integrity 985/1150 Matter 259/300 Energy 100/100 System Corruption 3% Temperature Cool (0) Movement Core (100) Ox1 Location -4/Factory Parts ------- > --- POWER (2) -------- (None) > --- PROPULSION (3) --- (None) > --- UTILITY (10) ----- Weapon Cycler Improved Hacking Suite Advanced Hacking Suite Advanced System Shield > --- WEAPON (4) ------- Great Axe > --- INVENTORY (4) ---- Large Storage Unit Improved Cloaking Device Improved Shield Generator Heavy Shock Bomb Launcher Peak State ------------ > --- POWER ------------ Micro Nuclear Core Light Angular Momentum Engine > --- PROPULSION ------- Wheel Wheel Armored Wheel > --- UTILITY ---------- Cryofiber Web Advanced Heat Sink Advanced Heat Sink Large Storage Unit Improved Sensor Array Improved Targeting Computer Core Analyzer Improved Focal Shield > --- WEAPON ----------- Heavy EM Shotgun Force Rifle Wave Gun High-powered Shotgun > --- INVENTORY -------- Weapon Cycler Improved Shield Generator Improved Shield Generator Heavy Laser Cooled Pulse Rifle Wave Gun Wave Gun Power Maul Power Maul [Rating: 63] Favorites ----------- Power Micro Nuclear Core Engine Cooled Deuterium Engine Power Core Micro Nuclear Core Propulsion Wheel Wheel Wheel Utility Improved Targeting Computer Device Improved Heat Sink Storage Large Storage Unit Processor Improved Targeting Computer Hackware Improved Hacking Suite Protection Hardened Medium Armor Plating Weapon Cooled Pulse Rifle Energy Gun Cooled Pulse Rifle Energy Cannon EM Pulse Cannon Ballistic Gun High-powered Shotgun Impact Weapon Power Maul Slashing Weapon Axe Build | -11 -10 -10 -9 -8 -7 -7 -6 -5 -4 ------- Run | Scr Mat Min Mat Mat Fac Sto Fac Fac Fac Slots Evolved 12 | . . . 2 2 2 . 2 2 2 Power 1 | . . . . . 1 . . . . Propulsion 1 | . . . . . 1 . . . . Utility 8 | . . . 2 1 . . 2 1 2 Weapon 2 | . . . . 1 . . . 1 . Parts Attached 132 | 2 2 . 10 12 40 23 11 23 9 Power 10 | . . . 2 1 4 2 1 . . Engine 8 | . . . 2 1 3 1 1 . . Core 2 | . . . . . 1 1 . . . Reactor . | . . . . . . . . . . Propulsion 25 | 2 . . . 3 8 5 4 3 . Treads . | . . . . . . . . . . Leg . | . . . . . . . . . . Wheel 25 | 2 . . . 3 8 5 4 3 . Hover . | . . . . . . . . . . Flight . | . . . . . . . . . . Utility 40 | . 2 . 3 3 11 4 2 9 6 Device 21 | . . . 1 2 6 . 2 7 3 Storage 2 | . . . 1 . 1 . . . . Processor 6 | . 1 . 1 1 2 . . 1 . Hackware 4 | . . . . . . . . 1 3 Protection 7 | . 1 . . . 2 4 . . . Artifact . | . . . . . . . . . . Weapon 57 | . . . 5 5 17 12 4 11 3 Energy Gun 31 | . . . 3 2 4 9 3 9 1 Energy Cannon 7 | . . . . . 7 . . . . Ballistic Gun 12 | . . . 2 2 3 3 1 1 . Ballistic Cannon . | . . . . . . . . . . Launcher . | . . . . . . . . . . Special Weapon . | . . . . . . . . . . Impact Weapon 2 | . . . . . . . . 1 1 Slashing Weapon 5 | . . . . 1 3 . . . 1 Piercing Weapon . | . . . . . . . . . . Special Melee Weapon . | . . . . . . . . . . Unidentified Prototypes 9 | . . . . . 2 7 . . . Parts Lost 63 | . . . . 12 11 9 7 20 4 Power 6 | . . . . 2 . 1 1 2 . Propulsion 15 | . . . . 3 4 4 . 4 . Utility 18 | . . . . 1 3 1 3 7 3 Weapon 24 | . . . . 6 4 3 3 7 1 Highest Loss Streak 11 | . . . . 11 3 4 5 11 4 Average Slot Usage (%) 75 | . 38 57 95 88 73 93 97 83 27 Engine 5 | . . . 9 7 6 7 5 4 . Core 2 | . . . . . . 6 6 4 . Wheel 12 | . 28 28 22 15 9 17 19 12 . Device 11 | . . . . 3 12 7 19 22 6 Storage 5 | . . . 9 9 4 7 6 5 2 Processor 12 | . 2 14 21 25 16 8 6 8 4 Protection 4 | . 8 14 11 6 . 12 11 . . Energy Gun 8 | . . . 9 6 2 13 18 16 2 Energy Cannon 3 | . . . . . 10 . . . . Ballistic Gun 4 | . . . 10 14 3 8 1 2 . Naked Turns . | . . . . . . . . . . Heaviest Build 66 | . 1 1 30 32 66 62 64 59 22 Greatest Support 48 | 20 20 3 20 22 38 42 48 38 3 Greatest Overweight (x) 7 | . . . 1 7 5 6 1 5 7 Average Overweight (x) 1 | . . . . 1 1 1 . 1 4 Largest Inventory Capacity 10 | 4 4 4 10 10 10 10 10 10 10 Average Capacity 8 | 4 4 4 8 9 8 10 10 10 7 Most Carried 10 | 4 4 4 10 10 10 10 10 10 4 Average Carried 7 | 3 4 4 7 8 7 9 9 8 3 Final Capacity 10 | 4 4 4 10 4 10 10 10 10 4 Final Carried 10 | 4 4 4 10 4 10 8 10 5 4 Class Distribution -------------------- 33% | Mutant 18% | Scavenger-Gunner 18% | Scavenger-Tank 10% | Scavenger-Mutant 8% | Gunner 6% | Hacker-Mutant Dominant Class ---------------- Mutant | -10/Materials Mutant | -10/Mines Mutant | -9/Materials Mutant | -8/Materials Mutant | -7/Factory Scavenger-Tank | -7/Storage Scavenger-Tank | -6/Factory Scavenger-Gunner | -5/Factory Mutant | -4/Factory Resources | -11 -10 -10 -9 -8 -7 -7 -6 -5 -4 ----------- Run | Scr Mat Min Mat Mat Fac Sto Fac Fac Fac Matter Collected 1882 | 74 . . 177 176 658 297 263 208 29 Remotely . | . . . . . . . . . . Salvage Created 3589 | . . . 191 176 1096 832 969 265 60 Parts 188 | . . . 19 18 57 48 40 5 1 Haulers Intercepted 3 | . . . 1 . 1 1 . . . Recyclers Shooed 6 | . . . 1 . 1 2 1 . 1 Parts Field Recycled . | . . . . . . . . . . Retrieved Matter . | . . . . . . . . . . Parts Self-Destructed . | . . . . . . . . . . Prevented . | . . . . . . . . . . Kills | -11 -10 -10 -9 -8 -7 -7 -6 -5 -4 ------- Run | Scr Mat Min Mat Mat Fac Sto Fac Fac Fac Combat Hostiles Destroyed 56 | . . . 5 3 16 15 13 4 . Melee 1 | . . . . . 1 . . . . Guns 43 | . . . 5 3 5 14 13 3 . Cannons 6 | . . . . . 6 . . . . AOE 3 | . . . . . 2 . . 1 . Classes Destroyed 14 | . . . 4 1 5 2 2 . . Worker 5 | . . . . . 3 . 1 . 1 Builder 7 | . . . . . 3 2 . . 2 Tunneler 4 | . . . . 2 2 . . . . Hauler 3 | . . . 1 . 1 1 . . . Recycler 5 | . . . . . 1 2 2 . . Mechanic 1 | . . . . . . . 1 . . Watcher 1 | . . . . . . . 1 . . Swarmer 9 | . . . 3 . . 1 5 . . Grunt 26 | . . . 1 2 10 5 8 . . Duelist 1 | . . . . . . 1 . . . Sentry 13 | . . . 1 1 3 6 . 2 . Demolisher 1 | . . . . . . 1 . . . Hunter 2 | . . . . . 2 . . . . Programmer 4 | . . . . . 1 1 . 2 . Best Kill Streak 8 | . . . 3 2 7 7 8 2 2 Combat Bots Only 7 | . . . 3 2 3 4 7 2 . Max Kills in Single Turn 2 | . . . 1 1 2 2 2 1 1 Gunslinging 1 | . . . . . . . 1 . . Exploded 2 | . . . . . 2 . . 1 . Melee 1 | . . . . . 1 . . . . Uniques/NPCs Destroyed . | . . . . . . . . . . Combat | -11 -10 -10 -9 -8 -7 -7 -6 -5 -4 -------- Run | Scr Mat Min Mat Mat Fac Sto Fac Fac Fac Damage Taken 7878 | . 30 . 193 1474 1738 1202 1168 1679 394 Core 1844 | . 30 . 73 521 302 160 86 507 165 Absorbed by Shields 138 | . . . . . . . 40 98 . Core Remaining (%) 63 | 100 . 88 81 5 . 34 89 49 . Volleys Fired 191 | . . . 16 20 55 42 35 18 5 Largest 4 | . . . 2 3 3 3 3 4 1 Hottest 281 | . . . 85 108 209 145 175 281 75 Shots Fired 493 | . . . 27 55 122 121 102 61 5 Gun 441 | . . . 27 55 70 121 102 61 5 Cannon 52 | . . . . . 52 . . . . Launcher . | . . . . . . . . . . Special . | . . . . . . . . . . Kinetic 158 | . . . 16 40 28 48 15 11 . Thermal 245 | . . . 11 15 61 58 55 40 5 Explosive . | . . . . . . . . . . Electromagnetic 90 | . . . . . 33 15 32 10 . Robot Hit Streak 31 | . . . 5 11 13 17 18 31 1 Robot Miss Streak 7 | . . . 1 2 7 5 4 3 2 Penetration Max 1 | . . . . . 1 1 . . . Secondary Targets 6 | . . . . . . 1 5 . . Max Gunslinging Chain 2 | . . . . . . 1 2 . . Shots Hit Robots 363 | . . . 18 38 102 84 67 47 7 Core Hits 191 | . . . 12 21 49 48 41 18 2 Critical Hits 2 | . . . . . . 1 1 . . Critical Kills 1 | . . . . . . . 1 . . Critical Parts Destroyed 1 | . . . . . . 1 . . . Melee Attacks 19 | . . . . . 12 . . . 7 Impact 2 | . . . . . . . . . 2 Slashing 17 | . . . . . 12 . . . 5 Piercing . | . . . . . . . . . . Sneak Attacks 6 | . . . . . 4 . . . 2 Combat Hostiles . | . . . . . . . . . . Follow-up Attacks . | . . . . . . . . . . Damage Inflicted 8497 | . . . 245 479 3042 1857 1346 1159 369 Guns 5923 | . . . 245 472 1035 1857 1346 943 25 Cannons 1036 | . . . . . 1036 . . . . Explosions 523 | . . . . . 313 . . 210 . Melee 1002 | . . . . . 658 . . . 344 Ramming 13 | . . . . 7 . . . 6 . Kinetic 2150 | . . . 181 328 418 814 231 178 . Thermal 3781 | . . . 64 144 1014 908 826 800 25 Explosive 313 | . . . . . 313 . . . . Electromagnetic 1238 | . . . . . 639 135 289 175 . Impact 192 | . . . . . . . . . 192 Slashing 810 | . . . . . 658 . . . 152 Piercing . | . . . . . . . . . . Highest Corruption 7 | . . . . . 3 7 2 4 3 Average Corruption 2 | . . . . . 3 3 2 3 1 Corruption Purged . | . . . . . . . . . . Effects 28 | . . . . . 17 5 3 3 . Message Errors 6 | . . . . . 5 1 . . . Matter Fused 9 | . . . . . 7 1 . 1 . Heat Flow Errors 2 | . . . . . 1 . 1 . . Energy Discharges 1 | . . . . . 1 . . . . Parts Rejected 2 | . . . . . . . . 2 . Data Loss (minor) 1 | . . . . . . . 1 . . Targeting Errors 6 | . . . . . 2 3 1 . . Weapon Failures 1 | . . . . . 1 . . . . Overload Shots . | . . . . . . . . . . Overflow Damage 582 | . . . . . 291 . . 158 133 Projectiles 27 | . . . . . 27 . . . . Explosions 257 | . . . . . 99 . . 158 . Melee 298 | . . . . . 165 . . . 133 Knockbacks 2 | . . . . . . . . . 2 Impact 2 | . . . . . . . . . 2 Kinetic . | . . . . . . . . . . Secondary . | . . . . . . . . . . Self-Inflicted Damage 412 | . . . . 3 246 . . 163 . Shots 6 | . . . . . 3 . . 3 . Rammed 11 | . . . . 2 . . . 9 . Targets Rammed 11 | . . . . 2 . . . 9 . Kicked . | . . . . . . . . . . Crushed . | . . . . . . . . . . Highest Temperature 563 | . . . 15 170 228 132 232 563 32 Average Temperature 67 | . . . 6 58 60 48 53 171 32 Received Heat Transfer 1928 | . 15 . 57 513 573 270 284 216 . Siege Activations . | . . . . . . . . . . Robots Corrupted 2 | . . . . . 2 . . . . Combat Hostiles 2 | . . . . . 2 . . . . Parts Fried 9 | . . . . . 3 . . . 6 Impact Corruptions 5 | . . . . . . . . . 5 Robots Melted 1 | . . . . . . 1 . . . Combat Hostiles 1 | . . . . . . 1 . . . Parts Melted 10 | . . . . . 3 5 1 1 . Heat Transferred 6117 | . . . 125 202 1771 1523 1397 1062 37 Parts Sabotaged . | . . . . . . . . . . Parts Stolen . | . . . . . . . . . . Parts Stripped . | . . . . . . . . . . Power Chain Reactions . | . . . . . . . . . . Missiles Intercepted . | . . . . . . . . . . Alert | -11 -10 -10 -9 -8 -7 -7 -6 -5 -4 ------- Run | Scr Mat Min Mat Mat Fac Sto Fac Fac Fac Peak Influence 756 | . 60 23 180 396 508 739 756 497 101 Initial 357 | . . 23 8 76 150 230 179 357 91 Average 285 | . 12 23 76 184 284 444 515 405 68 Maximum Alert Level 3 | . . . . 1 2 3 3 2 . Low Security (%) 46 | 100 100 100 100 72 34 . 33 . 100 Level 1 28 | . . . . 27 54 50 . 40 . Level 2 19 | . . . . . 11 48 26 58 . Level 3 5 | . . . . . . 1 39 . . Level 4 . | . . . . . . . . . . Level 5 . | . . . . . . . . . . High Security . | . . . . . . . . . . Max Security . | . . . . . . . . . . Squads Dispatched 14 | . 1 . . 3 2 4 2 1 1 Investigation . | . . . . . . . . . . Extermination 4 | . . . . . 1 1 . 1 1 Reinforcement 3 | . 1 . . . . 2 . . . Assault 2 | . . . . . . . 2 . . Garrison 5 | . . . . 3 1 1 . . . Intercept . | . . . . . . . . . . Construction Impeded 1 | . . . . . . 1 . . . Haulers Reinforced 1 | . . . . . . 1 . . . Stealth | -11 -10 -10 -9 -8 -7 -7 -6 -5 -4 --------- Run | Scr Mat Min Mat Mat Fac Sto Fac Fac Fac Distress Signals 6 | . . . . 2 . 2 1 . 1 Communications Jammed . | . . . . . . . . . . Distress Signals . | . . . . . . . . . . Times Spotted 140 | . 6 . 10 30 33 22 25 7 7 Peak Tracking Total 12 | . 5 . 4 12 6 7 6 3 7 Tactical Retreats 14 | . 1 . . 3 6 . 4 . . Traps | -11 -10 -10 -9 -8 -7 -7 -6 -5 -4 ------- Run | Scr Mat Min Mat Mat Fac Sto Fac Fac Fac Traps Triggered 9 | . . . . . 2 3 3 1 . Indirectly . | . . . . . . . . . . Trap Hack Attempts . | . . . . . . . . . . Triggered . | . . . . . . . . . . Disarmed . | . . . . . . . . . . Reprogrammed . | . . . . . . . . . . Reused . | . . . . . . . . . . Traps Extracted . | . . . . . . . . . . Installed . | . . . . . . . . . . Triggered . | . . . . . . . . . . Machines | -11 -10 -10 -9 -8 -7 -7 -6 -5 -4 ---------- Run | Scr Mat Min Mat Mat Fac Sto Fac Fac Fac Machines Disabled 12 | . . . . 1 5 2 . 4 . Max in Single Turn 4 | . . . . 1 2 1 . 4 . Machines Sabotaged . | . . . . . . . . . . Garrisons Compromised . | . . . . . . . . . . Overloaded Fab Kills . | . . . . . . . . . . Fab Network Shutdowns 1 | . . . . . . . 1 . . Hacking | -11 -10 -10 -9 -8 -7 -7 -6 -5 -4 --------- Run | Scr Mat Min Mat Mat Fac Sto Fac Fac Fac Machines Accessed 9 | . . . . . 4 2 3 . . Terminals 6 | . . . . . 3 2 1 . . Fabricators 3 | . . . . . 1 . 2 . . Repair Stations . | . . . . . . . . . . Recycling Units . | . . . . . . . . . . Scanalyzers . | . . . . . . . . . . Garrison Access . | . . . . . . . . . . Total Hacks 19 | . . . . . 9 7 3 . . Successful 6 | . . . . . 2 3 1 . . Failed 13 | . . . . . 7 4 2 . . Catastrophic 2 | . . . . . 1 . 1 . . Database Lockouts . | . . . . . . . . . . Manual 12 | . . . . . 6 5 1 . . Terminals 14 | . . . . . 6 7 1 . . Fabricators 5 | . . . . . 3 . 2 . . Repair Stations . | . . . . . . . . . . Recycling Units . | . . . . . . . . . . Scanalyzers . | . . . . . . . . . . Garrison Access . | . . . . . . . . . . Terminal Hacks 1 | . . . . . . 1 . . . Open Door 1 | . . . . . . 1 . . . Fabricator Hacks 2 | . . . . . 1 . 1 . . Build 2 | . . . . . 1 . 1 . . Repair Station Hacks . | . . . . . . . . . . Recycling Unit Hacks . | . . . . . . . . . . Scanalyzer . | . . . . . . . . . . Garrison Access Hacks . | . . . . . . . . . . Unauthorized Hacks 3 | . . . . . 1 2 . . . Terminals 3 | . . . . . 1 2 . . . Assimilate 1 | . . . . . . 1 . . . Botnet 2 | . . . . . 1 1 . . . Fabricators . | . . . . . . . . . . Repair Stations . | . . . . . . . . . . Recycling Units . | . . . . . . . . . . Scanalyzers . | . . . . . . . . . . Garrison Access . | . . . . . . . . . . Data Cores Recovered . | . . . . . . . . . . Used . | . . . . . . . . . . Hacking Detections 6 | . . . . . 4 1 1 . . Full Trace Events . | . . . . . . . . . . Feedback Events . | . . . . . . . . . . Feedback Blocked . | . . . . . . . . . . Robot Schematics Acquired . | . . . . . . . . . . Robots Built . | . . . . . . . . . . Matter . | . . . . . . . . . . Time . | . . . . . . . . . . Total Robot Build Rating . | . . . . . . . . . . Part Schematics Acquired . | . . . . . . . . . . Parts Built 2 | . . . . . 1 . 1 . . Matter 424 | . . . . . 212 . 212 . . Time 159 | . . . . . 53 . 106 . . Total Part Build Rating 12 | . . . . . 6 . 6 . . Parts Repaired . | . . . . . . . . . . Time . | . . . . . . . . . . Parts Recycled . | . . . . . . . . . . Recycled Matter . | . . . . . . . . . . Retrieved Matter . | . . . . . . . . . . Retrieved Components . | . . . . . . . . . . Parts Scanalyzed . | . . . . . . . . . . Part Schematics Acquired . | . . . . . . . . . . Parts Damaged . | . . . . . . . . . . Bothacking | -11 -10 -10 -9 -8 -7 -7 -6 -5 -4 ------------ Run | Scr Mat Min Mat Mat Fac Sto Fac Fac Fac Used RIF Installer . | . . . . . . . . . . Robots Hacked . | . . . . . . . . . . Non-combat . | . . . . . . . . . . Combat . | . . . . . . . . . . Robot Hacks Applied . | . . . . . . . . . . Relay Couplers Released . | . . . . . . . . . . Robots Rewired . | . . . . . . . . . . Allies Hacked . | . . . . . . . . . . Hacks Repelled . | . . . . . . . . . . Allies | -11 -10 -10 -9 -8 -7 -7 -6 -5 -4 -------- Run | Scr Mat Min Mat Mat Fac Sto Fac Fac Fac Total Allies 11 | . . . . . . 11 . . . Largest Group 11 | . . . . . . 11 . . . Highest-Rated Group 183 | . . . . . . 183 . . . Highest-Rated Ally 29 | . . . . . . 29 . . . Total Orders . | . . . . . . . . . . Ally Attacks 33 | . . . . . . 33 . . . Total Damage 415 | . . . . . . 415 . . . Kills 4 | . . . . . . 4 . . . Allies Corrupted . | . . . . . . . . . . Allies Melted . | . . . . . . . . . . Intel | -11 -10 -10 -9 -8 -7 -7 -6 -5 -4 ------- Run | Scr Mat Min Mat Mat Fac Sto Fac Fac Fac Robot Analysis Total . | . . . . . . . . . . Derelict Logs Recovered . | . . . . . . . . . . Drone Launches . | . . . . . . . . . . Drone Recoveries . | . . . . . . . . . . Exploration | -11 -10 -10 -9 -8 -7 -7 -6 -5 -4 ------------- Run | Scr Mat Min Mat Mat Fac Sto Fac Fac Fac Turns Passed 3918 | 29 74 9 279 322 1173 457 574 402 599 Spaces Moved 2455 | 28 132 17 252 200 754 241 396 244 191 Core 561 | 1 116 17 49 6 178 . . 3 191 Treads . | . . . . . . . . . . Legs . | . . . . . . . . . . Wheels 1894 | 27 16 . 203 194 576 241 396 241 . Hover . | . . . . . . . . . . Flight . | . . . . . . . . . . Fastest Speed 50 | 50 50 50 50 90 50 90 96 93 200 Average Speed 112 | 78 53 50 81 97 103 102 104 105 290 Slowest Speed 400 | 80 80 50 90 400 250 140 110 300 400 Overloaded Moves . | . . . . . . . . . . Propulsion Burnouts . | . . . . . . . . . . Robots Hopped . | . . . . . . . . . . Cave-ins Triggered . | . . . . . . . . . . Exploration Rate (%) 19 | 3 36 14 20 23 19 50 11 9 6 Regions Visited 9 Branch Regions 2 Pre-discovered Areas . | . . . . . . . . . . Known Exits Taken . | . . . . . . . . . . Unknown Exits Taken 9 | 1 1 1 1 1 1 1 1 1 . Scrap Searched . | . . . . . . . . . . Spaces Dug 1 | . . . . . 1 . . . . Terrain Destroyed 95 | . . . . . 78 1 . 16 . Melee 1 | . . . . . 1 . . . . Projectile 1 | . . . . . . 1 . . . AOE 93 | . . . . . 77 . . 16 . Terrain Rammed . | . . . . . . . . . . Walls Destroyed . | . . . . . . . . . . Machines Disabled . | . . . . . . . . . . Actions | -11 -10 -10 -9 -8 -7 -7 -6 -5 -4 --------- Run | Scr Mat Min Mat Mat Fac Sto Fac Fac Fac Total 3155 | 33 133 16 300 283 1010 358 479 326 217 Wait 212 | . . . 5 42 110 30 15 10 . Move 2446 | 27 131 16 251 199 753 240 395 243 191 Hop . | . . . . . . . . . . Pick Up 58 | 4 . . 11 4 20 5 6 6 2 Fast Attach 57 | 2 2 . 3 1 21 12 3 7 6 Attach 52 | . . . 3 9 13 8 5 11 3 Detach 13 | . . . . . 5 5 . 2 1 Swap 23 | . . . 4 2 6 3 3 5 . Drop 49 | . . . 7 4 15 10 4 7 2 Fire 191 | . . . 16 20 55 42 35 18 5 Melee 19 | . . . . . 12 . . . 7 Ram 11 | . . . . 2 . . . 9 . Kick . | . . . . . . . . . . Crush . | . . . . . . . . . . Escape Stasis 21 | . . . . . . . 13 8 . Rewire 3 | . . . . . . 3 . . . Trap . | . . . . . . . . . . Miscellaneous . | . . . . . . . . . . Route ------- -11/Scrapyard -10/Materials -10/Mines -9/Materials -8/Materials -7/Factory -7/Storage -6/Factory -5/Factory -4/Factory (discovered 1 exit: [*Upp]) History --------- Turn | Location | Event 11 | -11/Scrapyard | Discovered new exit (range 15) 30 | -11/Scrapyard | Entered Materials 97 | -10/Materials | Discovered new exit (range 14) 104 | -10/Materials | Entered Mines 108 | -10/Mines | Discovered new exit (range 11) 113 | -10/Mines | Entered Materials 113 | -9/Materials | Evolved 2 slots: Utility x2 317 | -9/Materials | Build established: Mutant 379 | -9/Materials | Discovered new exit (range 15) 392 | -9/Materials | Entered another Materials area 392 | -8/Materials | Evolved 2 slots: Utility x1, Weapon x1 449 | -8/Materials | Garrison activated, responded to threat 682 | -8/Materials | Core integrity fell below 50% 694 | -8/Materials | Discovered new exit (range 16) 704 | -8/Materials | Core integrity fell below 20% 714 | -8/Materials | Entered Factory 714 | -7/Factory | Evolved 2 slots: Power x1, Propulsion x1 741 | -7/Factory | Lost 11 parts (2p3n1u5w) 1452 | -7/Factory | Lost 3 parts (1u2w) 1617 | -7/Factory | Fabricated Disruptor Cannon (x1) 1634 | -7/Factory | Lost 3 parts (2n1w) 1789 | -7/Factory | Garrison activated, responded to threat 1881 | -7/Factory | Discovered new exit (range 8) 1887 | -7/Factory | Entered Storage 2103 | -7/Storage | Core integrity fell below 50% 2160 | -7/Storage | Lost 4 parts (1n3w) 2198 | -7/Storage | Assisted by bots powering up and referring to "LRC-V3" 2268 | -7/Storage | Garrison activated, responded to threat 2329 | -7/Storage | Discovered new exit (range 15) 2344 | -7/Storage | Entered Factory 2344 | -6/Factory | Evolved 2 slots: Utility x2 2506 | -6/Factory | Fabricated Imp. Shock Absorption System? 2539 | -6/Factory | Local fabrication network quarantined 2575 | -6/Factory | Build established: Scavenger-Tank 2694 | -6/Factory | First assault squad dispatched 2839 | -6/Factory | Destroyed 7 combat bots 2843 | -6/Factory | Lost 5 parts (1p1u3w) 2889 | -6/Factory | Discovered new exit (range 16) 2918 | -6/Factory | Entered another Factory area 2918 | -5/Factory | Evolved 2 slots: Utility x1, Weapon x1 3239 | -5/Factory | Lost 8 parts (2n2u4w) 3257 | -5/Factory | Discovered new exit (range 15) 3316 | -5/Factory | Core integrity fell below 50% 3320 | -5/Factory | Entered another Factory area 3320 | -4/Factory | Evolved 2 slots: Utility x2 3349 | -4/Factory | Lost 11 parts (2p1n5u3w) 3564 | -4/Factory | Discovered new exit (range 15) 3606 | -4/Factory | Build established: Mutant 3919 | -4/Factory | Self-destructed Last Messages --------------- 03663_ Acquired Imp. Hacking Suite. 03680_ Acquired Adv. System Shield. 03694_ Acquired Hvy. Shock Bomb Launcher. 03711_ Connecting with Fabricator... 03711_ Current location identified: Factory 03719_ Dropped Power Maul. 03720_ Acquired Imp. Cloaking Device. 03757_ Acquired Adv. Hacking Suite. 03768_ Acquired Lrn. Sensor Array. 03820_ ALERT: Rogue bot located, Programmers report to Factory Zone 8W. 03868_ K-01 Serf destroyed. 03870_ Acquired 19 matter. 03882_ Dropped Power Maul. 03884_ Acquired Great Axe. 03909_ Variable Charge Gun destroyed. 03909_ Imp. Targeting Computer destroyed. 03912_ W-44 Eye sends out distress signal. 03912_ Adv. Thermal Shield destroyed. 03913_ Destroyed Imp. Heat Sink. 03915_ Lrn. Sensor Array destroyed. Map ----- +----------------------------------------------------+ | ?????????????????????????????????????????????????? | | ?????????????????????????????????????????????????? | | ?????????????????????????????????????????????????? | | ?????????????????????????????????????????????????? | | ?????????????????????????????????????????????????? | | ?????????????????????????????????????????????????? | | ?????????????????????????????????????????????????? | | ?????????????????????????????????????????????????? | | ?????????????????????????????????????????????????? | | ????????????????? ???????????????????????????????? | | ???????????????# ???" ?????????????????????????? | | ???????????????# ??" #????????????????????????? | | +??????????????# ?F" #????????????????????????? | | ???????? ?????# ?"" ###??????????????????????? | | ???????? ?????# #??????????????????????? | | ???????? ?????# ^ """ #??????????????????????? | | ???????? ?????# ^""" #??????????????????????? | | ???????? ?????# ^""" #??????????????????????? | | ???????? ?????# """ #??????????????????????? | | #??????? ?????# w #######+???????????????? | | #??????# #????# ???????????????? | | #??????# #????# ???????????????? | | #??????# #????# bg ??????????????????? | | #??????# #???## /] gp#??????????????????????? | | #??????# #???# ] t #??????????????????????? | | #??????# #???# / R @## """???????????????? | | ######## #???# p/ """???????????????? | | #???# ###+#### ] """???????????????? | | ######## #???#! #? ???? #?????????????? | | #?????## ##??# #? ?????!== #?????????????? | | #?????# #### # //!?????? #?????????????? | | #?????# # //!??????? #?????????????? | | #?????# ##########! /! #??????? #?????????????? | | #????###+####??????# #??????????????????????? | | ###### #??????# #??????????????????????? | | # # """ #??????# #??????????????????????? | | # ""# """ #??????#######??????????????????????? | | # ""# """ #???????????????????????????????????? | | # F"#* #???????????????????????????????????? | | + ""# #???????????????????????????????????? | | # ########???????????????????????????????????? | | # !#??????????????????????????????????????????? | | #/ #??????????????????????????????????????????? | | # #??????????????????????????????????????????? | | ######??????????????????????????????????????????? | | #???????????????????????????????????????????????? | | #???????????????????????????????????????????????? | | #???????????????????????????????????????????????? | | ????????????????????????????????????????????????? | | ????????????????????????????????????????????????? | +----------------------------------------------------+ Best States ------------- Heat Dissipation 78 Energy Generation 29 Energy Capacity 500 Matter Stores 300 Matter Capacity 300 Sight Range 22 Robot Scan Range 20 Terrain Scan Density 10 ECM Strength 2 Base Temperature (-) 100 Armor Coverage 450 Resistance: KI 25 Resistance: TH 30 Propulsion Shielding 33 Weapon Cycling 15 Evasion (%) 50 Targeting Accuracy 11 Core Analysis 6 Offensive Hacking 26 Defensive Hacking 14 Item Schematics ----------------- None Robot Schematics ------------------ None Fabricated ------------ Disruptor Cannon | x1 | -7/Factory | Preloaded Imp. Shock Absorption System | x1 | -6/Factory | Preloaded Alien Tech Used ----------------- None Achievements -------------- None Challenges ------------ None Game ------ Seed PowerAlloyMinigun Manual? 0 Play Time 00:52:55 Cumulative 51.7 hours Start 2021.03.10 @ 13:58:30 End 2021.03.10 @ 14:55:05 Sessions 1 Manual Loads 0 Difficulty Rogue Special Mode None Game No. 81 Rogue 81 Adventurer 0 Explorer 0 Win Type - Total 1 Types 1/0/0/0/0/0/0/0/0 Lore% 36 Gallery% 49 Achievement% 41 Wizard Run 0 Options --------- ASCII 0 Keyboard 0 Movement Numpad Keybinds 0 Fullscreen 1 Font 18/Terminus Map View 76x50 Tactical HUD 1 Map Filters NONE Filters NONE Steam 1 RUN: 04729d38-3a55-4397-94eb-afc5b242a5b4